Cogmind - Beta 12 @@@ ROGUE MODE // 2023.04.23 @ 21:54:50 Player: DreamweaverKara Result: Destroyed by Y-54 Guardian with Gatling Laser Performance ------------- Evolutions (4) 2000 Regions Visited (7) 1400 Robots Destroyed (24) 120 Value Destroyed (954) 954 Prototype IDs (2) 40 Alien Tech Used (0) 0 Bonus (500) 500 TOTAL SCORE: 5014 Bonus ------- Entered DSFs 500 Cogmind --------- Core Integrity 0/850 Matter 265/300 Energy 38/100 System Corruption 3% Temperature Cool (72) Movement Core (250) Ox4 Location -6/Factory Parts ------- > --- POWER (2) -------- (None) > --- PROPULSION (3) --- (None) > --- UTILITY (6) ------ System Shield > --- WEAPON (4) ------- Plasma Rifle Heavy Flail Heavy Flail Heavy Flail > --- INVENTORY (5) ---- Improved Trap Scanner Recalibrator Faulty Improved Spread Laser Peak State ------------ > --- POWER ------------ Improved Ion Engine Fusion Compressor > --- PROPULSION ------- Aluminum Leg Improved Aluminum Leg Carbon-fiber Leg > --- UTILITY ---------- Small Storage Unit Trap Scanner Sensor Array Microactuators > --- WEAPON ----------- Greatsword Greatsword > --- INVENTORY -------- Carbon-fiber Leg Carbon-fiber Leg Carbon-fiber Leg Carbon-fiber Leg Flexi-carbon Leg [Rating: 39] Favorites ----------- Power Improved Ion Engine Engine Improved Ion Engine Power Core Fusion Compressor Propulsion Improved Aluminum Leg Leg Improved Aluminum Leg Wheel Wheel Utility Small Storage Unit Device Sensor Array Storage Small Storage Unit Processor Corruption Screen Hackware System Shield Protection Medium Armor Plating Weapon Shotgun Energy Gun EM Pulse Gun Energy Cannon Phase Cannon Ballistic Gun Shotgun Launcher Grenade Launcher Special Weapon Remote Datajack Impact Weapon Heavy Flail Slashing Weapon Power Sword Build | -11 -10 -9 -9 -8 -7 -7 -6 ------- Run | Jun Mat Mat Min Mat Fac DSF Fac Slots Evolved 8 | . . 2 . 2 2 . 2 Power 1 | . . . . . 1 . . Propulsion 1 | . . 1 . . . . . Utility 4 | . . 1 . 1 . . 2 Weapon 2 | . . . . 1 1 . . Parts Attached 56 | 6 6 4 1 7 4 9 19 Power 6 | 1 1 . . 1 2 . 1 Engine 5 | 1 1 . . 1 1 . 1 Core 1 | . . . . . 1 . . Reactor . | . . . . . . . . Propulsion 17 | 2 1 3 . 3 1 4 3 Treads . | . . . . . . . . Leg 13 | . . 3 . 3 1 4 2 Wheel 4 | 2 1 . . . . . 1 Hover . | . . . . . . . . Flight . | . . . . . . . . Utility 10 | 1 1 . . 1 1 3 3 Device 6 | . 1 . . 1 1 1 2 Storage 1 | 1 . . . . . . . Processor 1 | . . . . . . 1 . Hackware 1 | . . . . . . . 1 Protection 1 | . . . . . . 1 . Artifact . | . . . . . . . . Weapon 23 | 2 3 1 1 2 . 2 12 Energy Gun 9 | 1 2 . . 2 . . 4 Energy Cannon 1 | . . . . . . . 1 Ballistic Gun 3 | 1 . 1 1 . . . . Ballistic Cannon . | . . . . . . . . Launcher 1 | . 1 . . . . . . Special Weapon 1 | . . . . . . . 1 Impact Weapon 3 | . . . . . . . 3 Slashing Weapon 5 | . . . . . . 2 3 Piercing Weapon . | . . . . . . . . Special Melee Weapon . | . . . . . . . . Unidentified Prototypes . | . . . . . . . . Parts Lost 44 | . 3 2 . 9 . 16 14 Power 5 | . . . . 2 . 2 1 Propulsion 15 | . 1 . . 4 . 6 4 Utility 7 | . . . . . . 5 2 Weapon 17 | . 2 2 . 3 . 3 7 Highest Loss Streak 13 | . 3 2 . 5 . 13 5 To Critical Strikes . | . . . . . . . . Average Slot Usage (%) 67 | . 93 81 88 73 69 58 40 Engine 6 | . 14 11 11 7 7 4 . Leg 14 | . . 16 33 25 23 17 5 Wheel 6 | . 27 11 . . . . 1 Device 9 | . 9 11 11 12 20 19 5 Storage 6 | . 14 11 11 9 7 4 . Processor 1 | . . . . . . . 4 Hackware 1 | . . . . . . . 4 Energy Gun 4 | . 12 9 . 9 7 3 1 Ballistic Gun 8 | . 14 11 22 10 . . . Slashing Weapon 2 | . . . . . . 2 6 Naked Turns . | . . . . . . . . Heaviest Build 32 | 14 17 18 19 20 24 32 26 Greatest Support 50 | 20 20 39 39 39 36 38 50 Greatest Overweight (x) 4 | . 1 . . . . 1 4 Average Overweight (x) . | . . . . . . . . Largest Inventory Capacity 8 | 8 8 8 8 8 8 8 5 Average Capacity 6 | 6 8 8 8 8 8 6 5 Most Carried 8 | 6 8 8 6 5 3 8 5 Average Carried 4 | 2 6 6 5 3 1 4 2 Final Capacity 8 | 8 8 8 8 8 8 5 5 Final Carried 8 | 6 8 4 6 3 2 3 3 Class Distribution -------------------- 97% | Mutant Dominant Class ---------------- Mutant | -10/Materials Mutant | -9/Materials Mutant | -9/Mines Mutant | -8/Materials Mutant | -7/Factory Mutant | -7/DSF Mutant | -6/Factory Resources | -11 -10 -9 -9 -8 -7 -7 -6 ----------- Run | Jun Mat Mat Min Mat Fac DSF Fac Matter Collected 966 | 224 99 . 196 150 . 2 295 Remotely . | . . . . . . . . Salvage Created 1022 | . 254 . 189 239 . . 340 Parts 48 | . 15 . 8 6 . . 19 Haulers Intercepted . | . . . . . . . . Recyclers Shooed 2 | . 1 . . 1 . . . Parts Field Recycled . | . . . . . . . . Retrieved Matter . | . . . . . . . . Parts Self-Destructed . | . . . . . . . . Prevented . | . . . . . . . . Kills | -11 -10 -9 -9 -8 -7 -7 -6 ------- Run | Jun Mat Mat Min Mat Fac DSF Fac Combat Hostiles Destroyed 20 | . 7 . 5 5 . . 3 Melee 3 | . . . . . . . 3 Guns 14 | . 4 . 5 5 . . . AOE 3 | . 3 . . . . . . Classes Destroyed 7 | . 1 . . . . . 6 Worker 1 | . . . . . . . 1 Recycler 1 | . . . . . . . 1 Mechanic 1 | . . . . . . . 1 Watcher 1 | . . . . . . . 1 Grunt 17 | . 7 . 5 5 . . . Sentry 1 | . . . . . . . 1 Programmer 2 | . . . . . . . 2 Best Kill Streak 6 | . 6 . 2 4 . . 2 Combat Bots Only 6 | . 6 . 2 4 . . 1 Max Kills in Single Turn 1 | . 1 . 1 1 . . 1 Gunslinging . | . . . . . . . . Exploded 1 | . 1 . . . . . . Melee 1 | . . . . . . . 1 Uniques/NPCs Destroyed . | . . . . . . . . Combat | -11 -10 -9 -9 -8 -7 -7 -6 -------- Run | Jun Mat Mat Min Mat Fac DSF Fac Damage Taken 5357 | . 440 210 200 946 . 1726 1835 Core 1768 | . 137 35 57 237 . 452 850 Absorbed by Shields . | . . . . . . . . Core Remaining (%) 62 | 100 45 . 77 56 . 35 . Volleys Fired 64 | . 17 . 17 14 . . 16 Largest 3 | . 2 . 2 3 . . 2 Hottest 165 | . 60 . 46 128 . . 165 Shots Fired 123 | . 29 . 34 39 . . 21 Gun 114 | . 27 . 34 39 . . 14 Cannon 5 | . . . . . . . 5 Launcher 2 | . 2 . . . . . . Special 2 | . . . . . . . 2 Kinetic 74 | . 17 . 34 23 . . . Thermal 32 | . . . . 16 . . 16 Explosive 2 | . 2 . . . . . . Electromagnetic 13 | . 10 . . . . . 3 Robot Hit Streak 12 | . 11 . 12 6 . . 5 Robot Miss Streak 4 | . 2 . 2 3 . . 4 Penetration Max . | . . . . . . . . Secondary Targets 2 | . . . . 2 . . . Max Gunslinging Chain 1 | . . . . 1 . . . Shots Hit Robots 102 | . 17 . 21 31 . 2 31 Core Hits 57 | . 16 . 13 16 . . 12 Critical Kills 1 | . . . 1 . . . . Critical Parts Destroyed . | . . . . . . . . Critical Strikes 3 | . . . 1 1 . . 1 Burn 1 | . . . . 1 . . . Destroy 1 | . . . 1 . . . . Sever 1 | . . . . . . . 1 Melee Attacks 21 | . . . . . . 4 17 Impact . | . . . . . . . . Slashing 21 | . . . . . . 4 17 Piercing . | . . . . . . . . Sneak Attacks 2 | . . . . . . . 2 Combat Hostiles . | . . . . . . . . Follow-up Attacks . | . . . . . . . . Damage Inflicted 2385 | . 452 . 373 459 . 103 998 Guns 1251 | . 224 . 373 459 . . 195 Cannons 122 | . . . . . . . 122 Explosions 228 | . 228 . . . . . . Melee 784 | . . . . . . 103 681 Ramming . | . . . . . . . . Kinetic 830 | . 141 . 373 316 . . . Thermal 493 | . 37 . . 143 . . 313 Explosive 191 | . 191 . . . . . . Electromagnetic 87 | . 83 . . . . . 4 Impact . | . . . . . . . . Slashing 784 | . . . . . . 103 681 Piercing . | . . . . . . . . Highest Corruption 3 | . . 2 2 . . . 3 Average Corruption 1 | . . 2 2 . . . 1 Corruption Purged . | . . . . . . . . Corruption Blocked . | . . . . . . . . Effects 4 | . . . 2 . . . 2 Heat Flow Errors 2 | . . . 1 . . . 1 Energy Discharges 2 | . . . 1 . . . 1 Overload Shots . | . . . . . . . . Overflow Damage 27 | . . . . . . . 27 Projectiles . | . . . . . . . . Explosions . | . . . . . . . . Melee 27 | . . . . . . . 27 Knockbacks . | . . . . . . . . Impact . | . . . . . . . . Kinetic . | . . . . . . . . Secondary . | . . . . . . . . Self-Inflicted Damage 61 | . 61 . . . . . . Shots 2 | . 2 . . . . . . Rammed . | . . . . . . . . Targets Rammed . | . . . . . . . . Kicked . | . . . . . . . . Crushed . | . . . . . . . . Highest Temperature 190 | . 51 . 82 190 . . 135 Average Temperature 61 | . 20 . 18 103 . . 43 Received Heat Transfer 1431 | . 213 117 114 540 . . 447 Siege Activations . | . . . . . . . . Robots Corrupted . | . . . . . . . . Combat Hostiles . | . . . . . . . . Parts Fried . | . . . . . . . . Impact Corruptions . | . . . . . . . . Robots Melted . | . . . . . . . . Combat Hostiles . | . . . . . . . . Parts Melted . | . . . . . . . . Heat Transferred 970 | . . . . 397 . . 573 Parts Sabotaged . | . . . . . . . . Parts Stolen . | . . . . . . . . Parts Stripped . | . . . . . . . . Power Chain Reactions 1 | . 1 . . . . . . Missiles Intercepted . | . . . . . . . . Alert | -11 -10 -9 -9 -8 -7 -7 -6 ------- Run | Jun Mat Mat Min Mat Fac DSF Fac Peak Influence 239 | . 239 100 170 131 41 43 115 Initial 100 | . . 100 5 66 41 28 7 Average 69 | . 111 44 109 106 41 16 44 Maximum Alert Level 1 | . 1 . . . . . . Low Security (%) 95 | 100 69 100 100 100 100 100 100 Level 1 4 | . 30 . . . . . . Level 2 . | . . . . . . . . Level 3 . | . . . . . . . . Level 4 . | . . . . . . . . Level 5 . | . . . . . . . . High Security . | . . . . . . . . Max Security . | . . . . . . . . Squads Dispatched 10 | . 1 3 . 1 . 1 4 Investigation 3 | . 1 1 . . . . 1 Extermination 2 | . . . . . . . 2 Reinforcement 5 | . . 2 . 1 . 1 1 Assault . | . . . . . . . . Garrison . | . . . . . . . . Intercept . | . . . . . . . . Searches Triggered . | . . . . . . . . Construction Impeded . | . . . . . . . . Haulers Reinforced . | . . . . . . . . Active Scanning Responses . | . . . . . . . . Cargo Convoy Interrupts . | . . . . . . . . Stealth | -11 -10 -9 -9 -8 -7 -7 -6 --------- Run | Jun Mat Mat Min Mat Fac DSF Fac Distress Signals 4 | . 1 1 1 1 . . . Communications Jammed . | . . . . . . . . Distress Signals . | . . . . . . . . Times Spotted 58 | . 13 4 7 12 . 6 16 Peak Tracking Total 8 | . 8 4 2 6 . 4 5 Tactical Retreats 10 | . 2 . 2 . . 3 3 Traps | -11 -10 -9 -9 -8 -7 -7 -6 ------- Run | Jun Mat Mat Min Mat Fac DSF Fac Traps Triggered 5 | . 2 2 . 1 . . . Indirectly . | . . . . . . . . Trap Hack Attempts . | . . . . . . . . Triggered . | . . . . . . . . Disarmed . | . . . . . . . . Reprogrammed . | . . . . . . . . Reused . | . . . . . . . . Traps Extracted . | . . . . . . . . Installed . | . . . . . . . . Triggered . | . . . . . . . . Machines | -11 -10 -9 -9 -8 -7 -7 -6 ---------- Run | Jun Mat Mat Min Mat Fac DSF Fac Machines Disabled 2 | . 2 . . . . . . Max in Single Turn 1 | . 1 . . . . . . Machines Repaired . | . . . . . . . . Machines Sabotaged . | . . . . . . . . Overloaded Fab Kills . | . . . . . . . . Hacking | -11 -10 -9 -9 -8 -7 -7 -6 --------- Run | Jun Mat Mat Min Mat Fac DSF Fac Machines Accessed 16 | . 4 1 . 3 2 . 6 Terminals 11 | . 3 1 . 3 1 . 3 Fabricators . | . . . . . . . . Repair Stations 1 | . . . . . . . 1 Recycling Units 2 | . 1 . . . 1 . . Scanalyzers 2 | . . . . . . . 2 Garrison Access . | . . . . . . . . Total Hacks 35 | . 11 1 . 8 3 . 12 Successful 17 | . 7 1 . 3 2 . 4 Failed 18 | . 4 . . 5 1 . 8 Catastrophic 4 | . 1 . . . 1 . 2 Database Lockouts . | . . . . . . . . Manual . | . . . . . . . . Terminals 26 | . 9 1 . 8 1 . 7 Fabricators . | . . . . . . . . Repair Stations 2 | . . . . . . . 2 Recycling Units 4 | . 2 . . . 2 . . Scanalyzers 3 | . . . . . . . 3 Garrison Access . | . . . . . . . . Terminal Hacks 13 | . 6 1 . 3 1 . 2 Record 2 | . 1 . . 1 . . . Prototype ID Bank 1 | . 1 . . . . . . Open DSF 2 | . . . . . 1 . 1 Recycling Unit Index 1 | . 1 . . . . . . Unreport Threat 3 | . 2 1 . . . . . Dispatch Records 1 | . . . . 1 . . . Hauler Manifests 1 | . . . . . . . 1 Zone Layout 2 | . 1 . . 1 . . . Fabricator Hacks . | . . . . . . . . Repair Station Hacks . | . . . . . . . . Recycling Unit Hacks 2 | . 1 . . . 1 . . Retrieve Matter 1 | . 1 . . . . . . Retrieve Components 1 | . . . . . 1 . . Scanalyzer 2 | . . . . . . . 2 Insert Component 1 | . . . . . . . 1 Analyze 1 | . . . . . . . 1 Garrison Access Hacks . | . . . . . . . . Unauthorized Hacks . | . . . . . . . . Terminals . | . . . . . . . . Fabricators . | . . . . . . . . Repair Stations . | . . . . . . . . Recycling Units . | . . . . . . . . Scanalyzers . | . . . . . . . . Garrison Access . | . . . . . . . . Data Cores Recovered . | . . . . . . . . Used . | . . . . . . . . Hacking Detections 10 | . 4 . . 3 . . 3 Full Trace Events 1 | . . . . . . . 1 Feedback Events . | . . . . . . . . Feedback Blocked . | . . . . . . . . Robot Schematics Acquired . | . . . . . . . . Robots Built . | . . . . . . . . Authchips . | . . . . . . . . Time . | . . . . . . . . Total Robot Build Rating . | . . . . . . . . Part Schematics Acquired 1 | . . . . . . . 1 Parts Built . | . . . . . . . . Authchips . | . . . . . . . . Time . | . . . . . . . . Total Part Build Rating . | . . . . . . . . Parts Repaired . | . . . . . . . . Time . | . . . . . . . . Parts Recycled . | . . . . . . . . Recycled Matter . | . . . . . . . . Retrieved Matter . | . . . . . . . . Retrieved Components 2 | . . . . . 2 . . Parts Scanalyzed 1 | . . . . . . . 1 Part Schematics Acquired 1 | . . . . . . . 1 Parts Damaged . | . . . . . . . . Bothacking | -11 -10 -9 -9 -8 -7 -7 -6 ------------ Run | Jun Mat Mat Min Mat Fac DSF Fac Used RIF Installer . | . . . . . . . . Robots Hacked 2 | . . . . . . . 2 Non-combat 1 | . . . . . . . 1 Combat 1 | . . . . . . . 1 Robot Hacks Applied 2 | . . . . . . . 2 parse_system 1 | . . . . . . . 1 find_station 1 | . . . . . . . 1 Relay Couplers Released . | . . . . . . . . Fabnet Peak Effective % . | . . . . . . . . Robots Rewired . | . . . . . . . . Allies Hacked . | . . . . . . . . Hacks Repelled . | . . . . . . . . Allies | -11 -10 -9 -9 -8 -7 -7 -6 -------- Run | Jun Mat Mat Min Mat Fac DSF Fac Total Allies . | . . . . . . . . Largest Group . | . . . . . . . . Highest-Rated Group . | . . . . . . . . Highest-Rated Ally . | . . . . . . . . Total Orders . | . . . . . . . . Ally Attacks . | . . . . . . . . Total Damage . | . . . . . . . . Kills . | . . . . . . . . Allies Corrupted . | . . . . . . . . Allies Melted . | . . . . . . . . Intel | -11 -10 -9 -9 -8 -7 -7 -6 ------- Run | Jun Mat Mat Min Mat Fac DSF Fac Robot Analysis Total . | . . . . . . . . Derelict Logs Recovered 2 | . . . 2 . . . . Drone Launches . | . . . . . . . . Drone Recoveries . | . . . . . . . . Exploration | -11 -10 -9 -9 -8 -7 -7 -6 ------------- Run | Jun Mat Mat Min Mat Fac DSF Fac Turns Passed 1990 | 61 313 157 385 190 68 151 665 Spaces Moved 1308 | 54 247 159 208 105 49 96 390 Core 89 | 9 . . . . . . 80 Treads . | . . . . . . . . Legs 685 | . . 63 208 105 49 96 164 Wheels 534 | 45 247 96 . . . . 146 Hover . | . . . . . . . . Flight . | . . . . . . . . Fastest Speed 50 | 50 80 80 120 120 120 120 50 Average Speed 107 | 75 80 95 120 120 120 122 119 Slowest Speed 250 | 80 95 120 120 120 120 190 250 Overloaded Moves . | . . . . . . . . Propulsion Burnouts . | . . . . . . . . Robots Hopped . | . . . . . . . . Cave-ins Triggered . | . . . . . . . . Exploration Rate (%) 29 | 3 51 24 45 14 1 87 13 Regions Visited 7 Branch Regions 1 Pre-discovered Areas . | . . . . . . . . Known Exits Taken 1 | . . . . . 1 . . Unknown Exits Taken 5 | 1 1 1 1 1 . . . Scrap Searched 1 | . . . 1 . . . . Spaces Dug 4 | . 4 . . . . . . Terrain Destroyed 10 | . 9 . . . . . 1 Melee . | . . . . . . . . Projectile 1 | . . . . . . . 1 AOE 9 | . 9 . . . . . . Terrain Rammed . | . . . . . . . . Walls Destroyed . | . . . . . . . . Machines Disabled . | . . . . . . . . Actions | -11 -10 -9 -9 -8 -7 -7 -6 --------- Run | Jun Mat Mat Min Mat Fac DSF Fac Total 1749 | 74 336 164 309 138 58 124 546 Wait 229 | 3 44 . 81 9 3 6 83 Move 1301 | 53 246 158 207 104 48 95 390 Hop . | . . . . . . . . Pick Up 65 | 12 15 . 3 4 3 10 18 Fast Attach . | . . . . . . . . Attach 55 | 6 5 4 1 7 4 9 19 Detach 1 | . . . . . . . 1 Swap 1 | . 1 . . . . . . Drop 12 | . 8 2 . . . . 2 Fire 64 | . 17 . 17 14 . . 16 Melee 21 | . . . . . . 4 17 Ram . | . . . . . . . . Kick . | . . . . . . . . Crush . | . . . . . . . . Escape Stasis . | . . . . . . . . Rewire . | . . . . . . . . Trap . | . . . . . . . . Miscellaneous . | . . . . . . . . Route ------- -11/Junkyard -10/Materials (discovered 2 exits: *Mat / [Min]) -9/Materials (discovered 2 exits: [*Min] / [*Sto]) -9/Mines -8/Materials -7/Factory -7/DSF -6/Factory History --------- Turn | Location | Event 22 | -11/Junkyard | Discovered new exit (range 15) 62 | -11/Junkyard | Entered Materials 87 | -10/Materials | Discovered new exit (range 18) 276 | -10/Materials | Core integrity fell below 50% 296 | -10/Materials | Discovered new exit (range 16) 308 | -10/Materials | Lost 3 parts (1n2w) 312 | -10/Materials | Build established: Mutant 375 | -10/Materials | Entered another Materials area 375 | -9/Materials | Evolved 2 slots: Propulsion x1, Utility x1 514 | -9/Materials | Discovered new exit (range 16) 527 | -9/Materials | Discovered new exit (range 16) 532 | -9/Materials | Entered Mines 794 | -9/Mines | Excavation squad dispatched 794 | -9/Mines | A large section of the Mines collapsed 901 | -9/Mines | Discovered new exit (range 13) 917 | -9/Mines | Entered Materials 917 | -8/Materials | Evolved 2 slots: Utility x1, Weapon x1 1029 | -8/Materials | Lost 5 parts (1p2n2w) 1088 | -8/Materials | Discovered new exit (range 16) 1107 | -8/Materials | Entered Factory 1107 | -7/Factory | Evolved 2 slots: Power x1, Weapon x1 1126 | -7/Factory | Lost 4 parts (1p2n1w) 1170 | -7/Factory | Identified exit to DSF 1175 | -7/Factory | Entered DSF 1211 | -7/DSF | Additional patrols routed to DSF 1305 | -7/DSF | Discovered new exit (range 16) 1309 | -7/DSF | Lost 13 parts (2p5n3u3w) 1309 | -7/DSF | Core integrity fell below 50% 1326 | -7/DSF | Entered Factory 1326 | -6/Factory | Evolved 2 slots: Utility x2 1333 | -6/Factory | Spotted B-75 Beast 1355 | -6/Factory | Lost 3 parts (1n2u) 1491 | -6/Factory | Lost 3 parts (2n1u) 1702 | -6/Factory | Lost 5 parts (1p1n3w) 1864 | -6/Factory | Core integrity fell below 50% 1972 | -6/Factory | Lost 4 parts (1n3w) 1978 | -6/Factory | Core integrity fell below 20% 1991 | -6/Factory | Destroyed by Y-54 Guardian with Gatling Laser Last Messages --------------- 01880_ Acquired 18 matter. 01881_ Sneak attack on M-13 Machinist. 01881_ M-13 Machinist destroyed. 01884_ Acquired Shock Rifle. 01886_ Acquired 10 matter. 01901_ Connecting with Repair Station... 01901_ ALERT: Suspicious activity at Repair Station F001. Dispatching Investigation squad. 01903_ Shock Rifle destroyed. 01920_ Acquired Plasma Rifle. 01922_ Acquired Prototype Energy Gun. 01928_ Connecting with Scanalyzer... 01931_ Remote Datajack destroyed. 01931_ Critical hit (Burn: +37). 01941_ Wheel destroyed. 01941_ Power Sword destroyed. 01946_ System corrupted: Energy discharge (-25). 01952_ Acquired Hvy. Flail. 01967_ System corrupted: Heat flow error (+110). 01985_ Triangulator destroyed. Map ----- +----------------------------------------------------+ | ??????????????????????????????????????????? #?? | | ?????????????????????????????????????????? #?? | | ??????????????????????????##############?? ### | | ??????????????????????????# """""" # # | | ??????????????????????????# ""S""" # # | | ??????????????????????????# """ """ # ! # | | ??????????????????????????# """ # ! # | | ??????????????????????????# """ + # | | ??????????????????????????# # # | | ??????????????????????????# """ """ # # | | ??????????????????????????# """ """ # # | | ??????????????????????????# """ """ # # | | ??????????????????????????# ## ## | | ??????????????????????????# ## ## | | ??????????????????????????# ## | | ??????????????????????????############+## | | ?????????????????????????????????????# | | ?????????????????????????????????????# | | ?????????????????????????????????????# | | ????????????????????????????########## | | ????????????????????????????# | | ????????????????????????????# ##############+##### | | ????????????????????????????# #???????# """ | | ???????????????????########## ###?????# "R" | | ???????????????????# # ! #?????# " " | | ???????????????????# @# ####### | | ???????????????????#// g ! + """ """ | | ???????????????????#/ Y# ####### """ """ | | ???????????????????#/ # ! !#?????# """ """ | | ???????????????????# #######?????# | | ???????????????????########???????????# """ """ | | ??????????????????????????????????????# """ """ | | ??????????????????????????????????????# """ """ | | ??????????????????????????????????????# | | ??????????????????????????????????????############ | | ?????????????????????????????????????????????????? | | ?????????????????????????????????????????????????? | | ?????????????????????????????????????????????????? | | ?????????????????????????????????????????????????? | | | | | | | | | | | | | | | | | | | | | | | +----------------------------------------------------+ Best States ------------- Heat Dissipation 64 Energy Generation 32 Energy Capacity 265 Matter Stores 300 Matter Capacity 300 Sight Range 16 Robot Scan Range 14 Terrain Scan Density 10 Jamming Range 12 Corruption Block 8 Armor Coverage 225 Melee Speed Boost 20 Evasion (%) 55 Defensive Hacking 10 Item Schematics ----------------- Gatling Laser | -6/Factory | Scanalyzed Robot Schematics ------------------ None Fabricated ------------ Nothing Alien Tech Used ----------------- None Achievements -------------- None Challenges ------------ None Game ------ Seed AluminumMatterSpecial Manual? 0 Play Time 00:33:49 Cumulative 15.0 hours Start 2023.04.23 @ 21:24:48 End 2023.04.23 @ 21:54:50 Sessions 1 Manual Loads 0 Difficulty Rogue Special Mode None Game No. 55 Rogue 55 Adventurer 0 Explorer 0 Win Type - Total 0 Types 0/0/0/0/0/0/0/0/0 Lore% 12 Gallery% 23 Achievement% 18 Wizard Run 0 Options --------- ASCII 1 Keyboard 0 Movement Mouse Keybinds 0 Fullscreen 2 Font 16/Terminus Map View 76x50 Tactical HUD 1 Map Filters NONE Filters NONE Steam 1 RUN: c1800a39-e29c-4cb9-9781-a723b4d1b59c